{"text_format":"3","workbook":"xlsx","n_sheets":2,"sheets":["Growth data","Growth chart"],"not_rendered":{"charts":1,"images":2,"defined_names":3},"read":"whole","date_system":"1900"}

{"sheet":"Growth data","index":0,"n_rows":24,"n_cols":10,"rows_kept":24,"merged":[[2,2,2,8],[3,9,5,9],[6,9,8,9],[9,9,11,9],[12,9,14,9],[15,9,17,9],[18,9,20,9],[21,9,23,9]]}
[]
[null,null,"Baby's name:","Davide"]
[null,null,"BABY GROWTH TRACKING",{"$nulls":6},1]
[null,null,"Age","Pounds","Ounces","Weight (lb.)","Weight percentile","Length (in.)","Length percentile",2]
[null,null,"At birth",7,0,{"$f":"IF(COUNT(Data[[#This Row],[Pounds]:[Ounces]])>0,Data[[#This Row],[Pounds]]+(Data[[#This Row],[Ounces]]/16),NA())","v":7},40,19.5,70]
[null,null,"4 days",6,8,{"$f":"IF(COUNT(Data[[#This Row],[Pounds]:[Ounces]])>0,Data[[#This Row],[Pounds]]+(Data[[#This Row],[Ounces]]/16),NA())","v":6.5},41,19.5,70]
[null,null,"7 days",6,4.8,{"$f":"IF(COUNT(Data[[#This Row],[Pounds]:[Ounces]])>0,Data[[#This Row],[Pounds]]+(Data[[#This Row],[Ounces]]/16),NA())","v":6.3},42,20,71,3]
[null,null,"11 days",6,9.6,{"$f":"IF(COUNT(Data[[#This Row],[Pounds]:[Ounces]])>0,Data[[#This Row],[Pounds]]+(Data[[#This Row],[Ounces]]/16),NA())","v":6.6},43,20,71]
[null,null,"14 days",7,0,{"$f":"IF(COUNT(Data[[#This Row],[Pounds]:[Ounces]])>0,Data[[#This Row],[Pounds]]+(Data[[#This Row],[Ounces]]/16),NA())","v":7},44,20,71]
[null,null,"18 days",7,12,{"$f":"IF(COUNT(Data[[#This Row],[Pounds]:[Ounces]])>0,Data[[#This Row],[Pounds]]+(Data[[#This Row],[Ounces]]/16),NA())","v":7.75},45,21,72,4]
[null,null,"21 days",8,8,{"$f":"IF(COUNT(Data[[#This Row],[Pounds]:[Ounces]])>0,Data[[#This Row],[Pounds]]+(Data[[#This Row],[Ounces]]/16),NA())","v":8.5},46,21,72]
[null,null,"25 days",null,null,{"$f":"IF(COUNT(Data[[#This Row],[Pounds]:[Ounces]])>0,Data[[#This Row],[Pounds]]+(Data[[#This Row],[Ounces]]/16),NA())","v":{"$error":"#N/A"}}]
[null,null,"28 days",null,null,{"$f":"IF(COUNT(Data[[#This Row],[Pounds]:[Ounces]])>0,Data[[#This Row],[Pounds]]+(Data[[#This Row],[Ounces]]/16),NA())","v":{"$error":"#N/A"}},{"$nulls":3},5]
[null,null,"5 weeks",null,null,{"$f":"IF(COUNT(Data[[#This Row],[Pounds]:[Ounces]])>0,Data[[#This Row],[Pounds]]+(Data[[#This Row],[Ounces]]/16),NA())","v":{"$error":"#N/A"}}]
[null,null,"6 weeks",null,null,{"$f":"IF(COUNT(Data[[#This Row],[Pounds]:[Ounces]])>0,Data[[#This Row],[Pounds]]+(Data[[#This Row],[Ounces]]/16),NA())","v":{"$error":"#N/A"}}]
[null,null,"7 weeks",null,null,{"$f":"IF(COUNT(Data[[#This Row],[Pounds]:[Ounces]])>0,Data[[#This Row],[Pounds]]+(Data[[#This Row],[Ounces]]/16),NA())","v":{"$error":"#N/A"}},{"$nulls":3},6]
[null,null,"2 months",null,null,{"$f":"IF(COUNT(Data[[#This Row],[Pounds]:[Ounces]])>0,Data[[#This Row],[Pounds]]+(Data[[#This Row],[Ounces]]/16),NA())","v":{"$error":"#N/A"}}]
[null,null,"3 months",null,null,{"$f":"IF(COUNT(Data[[#This Row],[Pounds]:[Ounces]])>0,Data[[#This Row],[Pounds]]+(Data[[#This Row],[Ounces]]/16),NA())","v":{"$error":"#N/A"}}]
[null,null,"6 months",null,null,{"$f":"IF(COUNT(Data[[#This Row],[Pounds]:[Ounces]])>0,Data[[#This Row],[Pounds]]+(Data[[#This Row],[Ounces]]/16),NA())","v":{"$error":"#N/A"}}]
[null,null,"9 months",null,null,{"$f":"IF(COUNT(Data[[#This Row],[Pounds]:[Ounces]])>0,Data[[#This Row],[Pounds]]+(Data[[#This Row],[Ounces]]/16),NA())","v":{"$error":"#N/A"}}]
[null,null,"12 months",null,null,{"$f":"IF(COUNT(Data[[#This Row],[Pounds]:[Ounces]])>0,Data[[#This Row],[Pounds]]+(Data[[#This Row],[Ounces]]/16),NA())","v":{"$error":"#N/A"}}]
[null,null,"18 months",null,null,{"$f":"IF(COUNT(Data[[#This Row],[Pounds]:[Ounces]])>0,Data[[#This Row],[Pounds]]+(Data[[#This Row],[Ounces]]/16),NA())","v":{"$error":"#N/A"}}]
[null,null,"24 months",null,null,{"$f":"IF(COUNT(Data[[#This Row],[Pounds]:[Ounces]])>0,Data[[#This Row],[Pounds]]+(Data[[#This Row],[Ounces]]/16),NA())","v":{"$error":"#N/A"}}]
[null,null,"36 months",null,null,{"$f":"IF(COUNT(Data[[#This Row],[Pounds]:[Ounces]])>0,Data[[#This Row],[Pounds]]+(Data[[#This Row],[Ounces]]/16),NA())","v":{"$error":"#N/A"}}]

{"sheet":"Growth chart","index":1,"n_rows":0,"n_cols":0,"rows_kept":0}